[Event "Late-Titled-Tuesday-Blitz-September-12-2023"]
[Site "Chess.com"]
[Date "2023.09.12"]
[Round "9"]
[White "ARTHURMOTIVATOR"]
[Black "kai_nov"]
[Result "1-0"]
[WhiteElo "2380"]
[BlackElo "2237"]
[TimeControl "180+1"]
[EndTime "15:39:13 PDT"]
[Termination "ARTHURMOTIVATOR won on time"]

1. e4 {[%clk 0:02:45.8]} 1... c5 {[%clk 0:02:59.3]} 2. b3 {[%clk 0:02:45.1]}
2... Nc6 {[%clk 0:02:57.5]} 3. Bb2 {[%clk 0:02:45.5]} 3... e5 {[%clk 0:02:57.7]}
4. Bb5 {[%clk 0:02:46.1]} 4... d6 {[%clk 0:02:56.8]} 5. Bxc6+ {[%clk 0:02:46.6]}
5... bxc6 {[%clk 0:02:56.4]} 6. Ne2 {[%clk 0:02:47.5]} 6... Nf6 {[%clk
0:02:52.6]} 7. d3 {[%clk 0:02:46]} 7... Bg4 {[%clk 0:02:44.5]} 8. O-O {[%clk
0:02:45.3]} 8... Be7 {[%clk 0:02:41.8]} 9. f3 {[%clk 0:02:37.5]} 9... Bh5 {[%clk
0:02:40.1]} 10. Nd2 {[%clk 0:02:34.7]} 10... O-O {[%clk 0:02:36.9]} 11. Ng3
{[%clk 0:02:10]} 11... Bg6 {[%clk 0:02:36.1]} 12. f4 {[%clk 0:02:09.6]} 12...
exf4 {[%clk 0:02:36]} 13. Rxf4 {[%clk 0:02:10.4]} 13... Nd7 {[%clk 0:02:32.9]}
14. Nh5 {[%clk 0:02:04.7]} 14... Ne5 {[%clk 0:02:03.9]} 15. Nc4 {[%clk
0:01:48.8]} 15... Bg5 {[%clk 0:01:48]} 16. Rf1 {[%clk 0:01:42.2]} 16... f6
{[%clk 0:01:37.4]} 17. Nf4 {[%clk 0:01:28.1]} 17... Qd7 {[%clk 0:00:59.9]} 18.
Ne3 {[%clk 0:01:24.3]} 18... f5 {[%clk 0:00:43.8]} 19. exf5 {[%clk 0:01:02.9]}
19... Bxf5 {[%clk 0:00:39.7]} 20. Nxf5 {[%clk 0:01:00.3]} 20... Rxf5 {[%clk
0:00:29.5]} 21. Nh5 {[%clk 0:00:50.1]} 21... Raf8 {[%clk 0:00:24.9]} 22. Rxf5
{[%clk 0:00:40]} 22... Qxf5 {[%clk 0:00:15.1]} 23. Qe2 {[%clk 0:00:38.2]} 23...
Ng4 {[%clk 0:00:10.1]} 24. Nxg7 {[%clk 0:00:33.7]} 24... Be3+ {[%clk 0:00:09.3]}
25. Qxe3 {[%clk 0:00:28.5]} 25... Nxe3 {[%clk 0:00:05.8]} 26. Nxf5 {[%clk
0:00:27.8]} 26... Rxf5 {[%clk 0:00:06.4]} 27. Rc1 {[%clk 0:00:19.8]} 27... Kf7
{[%clk 0:00:04]} 28. d4 {[%clk 0:00:19.1]} 28... cxd4 {[%clk 0:00:03.2]} 29.
Bxd4 {[%clk 0:00:19.1]} 29... Nd5 {[%clk 0:00:02.7]} 30. c4 {[%clk 0:00:17.9]}
30... Nb4 {[%clk 0:00:02.2]} 31. a3 {[%clk 0:00:16.9]} 31... Nd3 {[%clk
0:00:02.4]} 32. Rd1 {[%clk 0:00:16.3]} 1-0

[Event "Late-Titled-Tuesday-Blitz-September-12-2023"]
[Site "Chess.com"]
[Date "2023.09.12"]
[Round "9"]
[White "K_A_S_T_O_R"]
[Black "Ali_rastbod"]
[Result "1-0"]
[WhiteElo "2938"]
[BlackElo "2715"]
[TimeControl "180+1"]
[EndTime "15:39:17 PDT"]
[Termination "K_A_S_T_O_R won by checkmate"]

1. e4 {[%clk 0:03:00.9]} 1... c6 {[%clk 0:02:47.2]} 2. Nf3 {[%clk 0:02:59.7]}
2... d5 {[%clk 0:02:48]} 3. d3 {[%clk 0:03:00.2]} 3... a5 {[%clk 0:02:43.9]} 4.
Qe2 {[%clk 0:02:57.1]} 4... a4 {[%clk 0:02:43.7]} 5. a3 {[%clk 0:02:55.3]} 5...
g6 {[%clk 0:02:42.7]} 6. g3 {[%clk 0:02:54]} 6... Bg7 {[%clk 0:02:42.2]} 7. Nbd2
{[%clk 0:02:52.2]} 7... Nh6 {[%clk 0:02:34.4]} 8. Bg2 {[%clk 0:02:49.7]} 8...
O-O {[%clk 0:02:33.4]} 9. O-O {[%clk 0:02:44.9]} 9... e5 {[%clk 0:02:25.3]} 10.
Re1 {[%clk 0:02:37.5]} 10... Re8 {[%clk 0:02:23.5]} 11. b4 {[%clk 0:02:33.7]}
11... axb3 {[%clk 0:02:21.3]} 12. Nxb3 {[%clk 0:02:22.8]} 12... f6 {[%clk
0:02:14.4]} 13. Bb2 {[%clk 0:02:18]} 13... Nf7 {[%clk 0:02:09.1]} 14. a4 {[%clk
0:02:07.1]} 14... Na6 {[%clk 0:02:08.4]} 15. c3 {[%clk 0:01:54]} 15... Be6
{[%clk 0:02:01.9]} 16. Qc2 {[%clk 0:01:53.7]} 16... Nd6 {[%clk 0:01:44.5]} 17.
Nfd2 {[%clk 0:01:48.4]} 17... f5 {[%clk 0:01:34]} 18. Ba3 {[%clk 0:01:30.1]}
18... Nf7 {[%clk 0:01:20.4]} 19. exf5 {[%clk 0:01:18.7]} 19... Bxf5 {[%clk
0:01:19.7]} 20. Nf1 {[%clk 0:01:15.1]} 20... e4 {[%clk 0:01:11.7]} 21. dxe4
{[%clk 0:01:11.2]} 21... dxe4 {[%clk 0:01:12.6]} 22. Bxe4 {[%clk 0:00:52.7]}
22... Rxe4 {[%clk 0:01:12.1]} 23. Rxe4 {[%clk 0:00:52.4]} 23... Ng5 {[%clk
0:01:12.8]} 24. Nbd2 {[%clk 0:00:48.1]} 24... Nxe4 {[%clk 0:00:44.7]} 25. Nxe4
{[%clk 0:00:47.8]} 25... Qd5 {[%clk 0:00:45.4]} 26. f3 {[%clk 0:00:43.6]} 26...
Bxe4 {[%clk 0:00:41.9]} 27. fxe4 {[%clk 0:00:35.5]} 27... Qc4 {[%clk 0:00:41.9]}
28. Rc1 {[%clk 0:00:26.9]} 28... Re8 {[%clk 0:00:36.7]} 29. Nd2 {[%clk
0:00:24.8]} 29... Qe2 {[%clk 0:00:36.7]} 30. Qd1 {[%clk 0:00:21]} 30... Qe3+
{[%clk 0:00:34.5]} 31. Kg2 {[%clk 0:00:21.3]} 31... Kh8 {[%clk 0:00:30]} 32. Qe1
{[%clk 0:00:20.5]} 32... Qd3 {[%clk 0:00:30.3]} 33. Nf3 {[%clk 0:00:17.4]} 33...
Rxe4 {[%clk 0:00:29.5]} 34. Qf1 {[%clk 0:00:17.8]} 34... Re2+ {[%clk 0:00:29.4]}
35. Kh3 {[%clk 0:00:18.3]} 35... Qd7+ {[%clk 0:00:25.9]} 36. g4 {[%clk
0:00:18.6]} 36... Re3 {[%clk 0:00:23.5]} 37. Kg3 {[%clk 0:00:18.2]} 37... Nc7
{[%clk 0:00:15.7]} 38. Re1 {[%clk 0:00:17]} 38... Rxc3 {[%clk 0:00:14.2]} 39.
Bb2 {[%clk 0:00:15.8]} 39... Rxf3+ {[%clk 0:00:13.2]} 40. Qxf3 {[%clk 0:00:16]}
40... Bxb2 {[%clk 0:00:14.1]} 41. Qf8# {[%clk 0:00:16]} 1-0

[Event "Late-Titled-Tuesday-Blitz-September-12-2023"]
[Site "Chess.com"]
[Date "2023.09.12"]
[Round "9"]
[White "becemix"]
[Black "GarayevKanan"]
[Result "0-1"]
[WhiteElo "2542"]
[BlackElo "2725"]
[TimeControl "180+1"]
[EndTime "15:39:17 PDT"]
[Termination "GarayevKanan won on time"]

1. e4 {[%clk 0:02:51]} 1... c5 {[%clk 0:02:57.4]} 2. Nf3 {[%clk 0:02:50.2]} 2...
Nf6 {[%clk 0:02:55.9]} 3. Nc3 {[%clk 0:02:44.4]} 3... d5 {[%clk 0:02:55.5]} 4.
Bb5+ {[%clk 0:02:41.3]} 4... Bd7 {[%clk 0:02:53.4]} 5. Bxd7+ {[%clk 0:02:36.1]}
5... Qxd7 {[%clk 0:02:54.3]} 6. d3 {[%clk 0:02:32.6]} 6... Nc6 {[%clk
0:02:43.9]} 7. O-O {[%clk 0:02:31.5]} 7... e6 {[%clk 0:02:37.8]} 8. Re1 {[%clk
0:02:31]} 8... dxe4 {[%clk 0:02:33.7]} 9. Nxe4 {[%clk 0:02:27]} 9... Nd5 {[%clk
0:02:25.7]} 10. a3 {[%clk 0:02:10]} 10... Be7 {[%clk 0:02:14.3]} 11. Bg5 {[%clk
0:01:56.4]} 11... O-O {[%clk 0:02:07.4]} 12. Qd2 {[%clk 0:01:51.3]} 12... b6
{[%clk 0:02:03]} 13. Rad1 {[%clk 0:01:50.3]} 13... f6 {[%clk 0:01:59.1]} 14. Bh4
{[%clk 0:01:34.4]} 14... g5 {[%clk 0:01:58.5]} 15. Bg3 {[%clk 0:01:33.7]} 15...
g4 {[%clk 0:01:58.4]} 16. Nh4 {[%clk 0:01:31.7]} 16... f5 {[%clk 0:01:58.5]} 17.
Ng5 {[%clk 0:01:29.5]} 17... f4 {[%clk 0:01:54.8]} 18. Nxe6 {[%clk 0:01:29.5]}
18... fxg3 {[%clk 0:01:54.1]} 19. Nxf8 {[%clk 0:01:24.7]} 19... gxh2+ {[%clk
0:01:44.3]} 20. Kh1 {[%clk 0:01:24.8]} 20... Rxf8 {[%clk 0:01:42.7]} 21. Qh6
{[%clk 0:01:12.8]} 21... Nd4 {[%clk 0:01:05.1]} 22. Ng6 {[%clk 0:00:58.5]} 22...
Rxf2 {[%clk 0:00:47.4]} 23. Nxe7+ {[%clk 0:00:55.4]} 23... Nxe7 {[%clk
0:00:48.3]} 24. Rf1 {[%clk 0:00:29.8]} 24... Rxf1+ {[%clk 0:00:35.3]} 25. Rxf1
{[%clk 0:00:30.7]} 25... Ng6 {[%clk 0:00:35.6]} 26. Qxh2 {[%clk 0:00:29.7]}
26... Nxc2 {[%clk 0:00:28.4]} 27. Qg3 {[%clk 0:00:19.2]} 27... Nd4 {[%clk
0:00:25.7]} 28. Rf6 {[%clk 0:00:19]} 28... Kg7 {[%clk 0:00:23.4]} 29. Rf2 {[%clk
0:00:19.1]} 29... Qe7 {[%clk 0:00:18.5]} 30. Kh2 {[%clk 0:00:14.5]} 30... h5
{[%clk 0:00:15.8]} 31. Qb8 {[%clk 0:00:10.9]} 31... Qh4+ {[%clk 0:00:14.1]} 32.
Kg1 {[%clk 0:00:10.6]} 32... g3 {[%clk 0:00:09.8]} 33. Qc7+ {[%clk 0:00:08.9]}
33... Kh6 {[%clk 0:00:09.6]} 0-1

[Event "Late-Titled-Tuesday-Blitz-September-12-2023"]
[Site "Chess.com"]
[Date "2023.09.12"]
[Round "9"]
[White "Mikhal867"]
[Black "GoltsevDmitry2000"]
[Result "0-1"]
[WhiteElo "2458"]
[BlackElo "2632"]
[TimeControl "180+1"]
[EndTime "15:39:17 PDT"]
[Termination "GoltsevDmitry2000 won by resignation"]

1. c4 {[%clk 0:02:54.2]} 1... e5 {[%clk 0:02:58.1]} 2. Nc3 {[%clk 0:02:54.1]}
2... Nf6 {[%clk 0:02:58.7]} 3. g3 {[%clk 0:02:54]} 3... Nc6 {[%clk 0:02:59.3]}
4. Bg2 {[%clk 0:02:53.7]} 4... a5 {[%clk 0:02:59.9]} 5. e3 {[%clk 0:02:52.8]}
5... Bc5 {[%clk 0:02:59.9]} 6. Nge2 {[%clk 0:02:52.3]} 6... O-O {[%clk
0:02:59.5]} 7. O-O {[%clk 0:02:51.9]} 7... d6 {[%clk 0:03:00]} 8. d3 {[%clk
0:02:49.3]} 8... Bg4 {[%clk 0:02:57]} 9. h3 {[%clk 0:02:47.9]} 9... Bf5 {[%clk
0:02:55.5]} 10. Kh2 {[%clk 0:02:42]} 10... Qd7 {[%clk 0:02:54.9]} 11. e4 {[%clk
0:02:36.4]} 11... Bg6 {[%clk 0:02:51.8]} 12. f4 {[%clk 0:02:36.6]} 12... exf4
{[%clk 0:02:48.9]} 13. gxf4 {[%clk 0:02:36.7]} 13... Bh5 {[%clk 0:02:47.1]} 14.
Qe1 {[%clk 0:02:25.7]} 14... Nb4 {[%clk 0:02:45.5]} 15. Qd2 {[%clk 0:02:09.3]}
15... Rae8 {[%clk 0:02:34.9]} 16. Ng3 {[%clk 0:02:08.7]} 16... g6 {[%clk
0:02:16.2]} 17. d4 {[%clk 0:02:02.9]} 17... Ba7 {[%clk 0:02:14.1]} 18. a3 {[%clk
0:01:56.9]} 18... Nc6 {[%clk 0:02:10.5]} 19. Nb5 {[%clk 0:01:57]} 19... Bb6
{[%clk 0:02:07.4]} 20. d5 {[%clk 0:01:32.5]} 20... Nb8 {[%clk 0:02:01.6]} 21.
Qc3 {[%clk 0:01:32]} 21... Qe7 {[%clk 0:01:57.5]} 22. b4 {[%clk 0:01:19.2]}
22... axb4 {[%clk 0:01:51.6]} 23. axb4 {[%clk 0:01:18.5]} 23... Na6 {[%clk
0:01:50.4]} 24. Bb2 {[%clk 0:01:11.7]} 24... Nxb4 {[%clk 0:01:36.5]} 25. Qxf6
{[%clk 0:01:02]} 25... Qxf6 {[%clk 0:01:34.9]} 26. Bxf6 {[%clk 0:01:01.1]} 26...
Nc2 {[%clk 0:01:32.4]} 27. Nxh5 {[%clk 0:01:00.3]} 27... Nxa1 {[%clk 0:01:22.1]}
28. Bxa1 {[%clk 0:00:36.3]} 28... gxh5 {[%clk 0:01:21.8]} 29. e5 {[%clk
0:00:36.2]} 29... dxe5 {[%clk 0:01:17.9]} 30. fxe5 {[%clk 0:00:36.1]} 30... Ra8
{[%clk 0:01:17]} 31. Be4 {[%clk 0:00:35.2]} 31... Rfe8 {[%clk 0:01:13.2]} 32.
Bc3 {[%clk 0:00:30.7]} 32... Ra2+ {[%clk 0:01:12]} 33. Kh1 {[%clk 0:00:30]}
33... Re2 {[%clk 0:01:09]} 34. Bf3 {[%clk 0:00:28.1]} 34... Re3 {[%clk
0:01:05.5]} 35. Rg1+ {[%clk 0:00:24.4]} 35... Kh8 {[%clk 0:01:01.2]} 36. e6+
{[%clk 0:00:24.1]} 36... Rxc3 {[%clk 0:01:00.8]} 37. exf7 {[%clk 0:00:17.4]}
37... Rf8 {[%clk 0:00:59]} 38. Nxc3 {[%clk 0:00:16.8]} 38... Bxg1 {[%clk
0:00:56.4]} 39. Kxg1 {[%clk 0:00:16.8]} 39... Rxf7 {[%clk 0:00:57.3]} 40. Bxh5
{[%clk 0:00:16.4]} 40... Rf4 {[%clk 0:00:53.9]} 41. c5 {[%clk 0:00:14.4]} 41...
Rc4 {[%clk 0:00:53.8]} 42. Ne2 {[%clk 0:00:11.2]} 42... Rxc5 {[%clk 0:00:53.5]}
43. Bf3 {[%clk 0:00:11.8]} 43... b5 {[%clk 0:00:53.4]} 44. Kf2 {[%clk
0:00:12.2]} 44... b4 {[%clk 0:00:53.7]} 45. Nd4 {[%clk 0:00:11.3]} 45... Rc4
{[%clk 0:00:51.6]} 46. Ke3 {[%clk 0:00:11.5]} 46... b3 {[%clk 0:00:51.2]} 47.
Be4 {[%clk 0:00:10.9]} 47... b2 {[%clk 0:00:50.9]} 48. Nb3 {[%clk 0:00:09.4]}
48... Rc3+ {[%clk 0:00:50.1]} 49. Kd2 {[%clk 0:00:07.7]} 49... Rxb3 {[%clk
0:00:50.5]} 50. Bb1 {[%clk 0:00:07.5]} 50... Rxh3 {[%clk 0:00:49.9]} 0-1

[Event "Late-Titled-Tuesday-Blitz-September-12-2023"]
[Site "Chess.com"]
[Date "2023.09.12"]
[Round "9"]
[White "RichardLeyvaP"]
[Black "jcibarra"]
[Result "0-1"]
[WhiteElo "2638"]
[BlackElo "2944"]
[TimeControl "180+1"]
[EndTime "15:39:18 PDT"]
[Termination "jcibarra won on time"]

1. e4 {[%clk 0:02:58.2]} 1... c5 {[%clk 0:03:00]} 2. Nf3 {[%clk 0:02:57.2]} 2...
e6 {[%clk 0:03:00.4]} 3. d4 {[%clk 0:02:57.5]} 3... cxd4 {[%clk 0:03:01]} 4.
Nxd4 {[%clk 0:02:58.2]} 4... Bc5 {[%clk 0:03:01.4]} 5. Nb3 {[%clk 0:02:55.9]}
5... Bb6 {[%clk 0:03:01.7]} 6. Nc3 {[%clk 0:02:54.2]} 6... Ne7 {[%clk
0:03:01.9]} 7. Bd3 {[%clk 0:02:54.1]} 7... O-O {[%clk 0:03:01.9]} 8. Qe2 {[%clk
0:02:51.9]} 8... f5 {[%clk 0:03:02.2]} 9. f3 {[%clk 0:02:47.2]} 9... f4 {[%clk
0:03:00.5]} 10. Bd2 {[%clk 0:02:46.4]} 10... Nbc6 {[%clk 0:03:00.4]} 11. O-O-O
{[%clk 0:02:45.5]} 11... Ng6 {[%clk 0:03:00.1]} 12. Kb1 {[%clk 0:02:35.5]} 12...
a6 {[%clk 0:02:59.4]} 13. g3 {[%clk 0:02:33.9]} 13... Nce5 {[%clk 0:02:57.1]}
14. Rdf1 {[%clk 0:02:26.6]} 14... Bc7 {[%clk 0:02:53.1]} 15. gxf4 {[%clk
0:02:14.1]} 15... Nxf4 {[%clk 0:02:52.7]} 16. Bxf4 {[%clk 0:02:14.3]} 16... Rxf4
{[%clk 0:02:53.2]} 17. Qe3 {[%clk 0:02:09.7]} 17... Qf6 {[%clk 0:02:51.4]} 18.
Nd2 {[%clk 0:01:53.6]} 18... b5 {[%clk 0:02:37.1]} 19. Ne2 {[%clk 0:01:52.9]}
19... Rh4 {[%clk 0:02:33.9]} 20. f4 {[%clk 0:01:48.7]} 20... Nxd3 {[%clk
0:02:33.9]} 21. cxd3 {[%clk 0:01:49.1]} 21... Bb7 {[%clk 0:02:31.5]} 22. Qg3
{[%clk 0:01:46.3]} 22... Rf8 {[%clk 0:02:26.3]} 23. Rhg1 {[%clk 0:01:42]} 23...
Qh6 {[%clk 0:02:21.2]} 24. Rf2 {[%clk 0:01:30]} 24... Rh3 {[%clk 0:02:05.2]} 25.
Qg4 {[%clk 0:01:26.8]} 25... Rxd3 {[%clk 0:02:04.1]} 26. Nc1 {[%clk 0:01:04.5]}
26... Rh3 {[%clk 0:01:50.7]} 27. e5 {[%clk 0:01:04.7]} 27... Bxe5 {[%clk
0:01:41.8]} 28. Rg3 {[%clk 0:01:00]} 28... Rh4 {[%clk 0:01:34.8]} 29. Qe2 {[%clk
0:00:58]} 29... Rhxf4 {[%clk 0:01:30.5]} 30. Rxf4 {[%clk 0:00:54]} 30... Bxf4
{[%clk 0:01:30.5]} 31. Rd3 {[%clk 0:00:53.3]} 31... Bxd2 {[%clk 0:01:06.1]} 32.
Rxd2 {[%clk 0:00:52.3]} 32... Be4+ {[%clk 0:00:55.3]} 33. Ka1 {[%clk 0:00:49.7]}
33... Rf1 {[%clk 0:00:49.9]} 34. Qxf1 {[%clk 0:00:38.2]} 34... Qxd2 {[%clk
0:00:48.8]} 35. h4 {[%clk 0:00:35.1]} 35... h6 {[%clk 0:00:36.5]} 36. Nb3 {[%clk
0:00:35.1]} 36... Qc2 {[%clk 0:00:29.7]} 37. Qg1 {[%clk 0:00:25.1]} 37... Bd5
{[%clk 0:00:27.5]} 38. Nd4 {[%clk 0:00:23]} 38... Qd3 {[%clk 0:00:25]} 39. a3
{[%clk 0:00:17.8]} 39... e5 {[%clk 0:00:21.9]} 0-1

[Event "Late-Titled-Tuesday-Blitz-September-12-2023"]
[Site "Chess.com"]
[Date "2023.09.12"]
[Round "9"]
[White "vladislavkovalev"]
[Black "lachesisQ"]
[Result "0-1"]
[WhiteElo "2905"]
[BlackElo "3086"]
[TimeControl "180+1"]
[EndTime "15:39:19 PDT"]
[Termination "lachesisQ won on time"]

1. e4 {[%clk 0:02:58]} 1... g6 {[%clk 0:03:00.9]} 2. d4 {[%clk 0:02:57.7]} 2...
Bg7 {[%clk 0:03:01]} 3. Be3 {[%clk 0:02:57.6]} 3... d6 {[%clk 0:03:00.5]} 4. Qd2
{[%clk 0:02:54.6]} 4... Nd7 {[%clk 0:02:57]} 5. f4 {[%clk 0:02:42.2]} 5... c5
{[%clk 0:02:52.3]} 6. Nf3 {[%clk 0:02:41.1]} 6... cxd4 {[%clk 0:02:50.2]} 7.
Bxd4 {[%clk 0:02:42]} 7... Ngf6 {[%clk 0:02:45.1]} 8. e5 {[%clk 0:02:33.6]} 8...
Ne4 {[%clk 0:02:37.3]} 9. Qe3 {[%clk 0:02:31.4]} 9... d5 {[%clk 0:01:53.5]} 10.
e6 {[%clk 0:02:26.2]} 10... Ndf6 {[%clk 0:01:53.6]} 11. exf7+ {[%clk 0:02:26.3]}
11... Kxf7 {[%clk 0:01:54.5]} 12. Ne5+ {[%clk 0:02:25]} 12... Kg8 {[%clk
0:01:52.2]} 13. Be2 {[%clk 0:02:07.3]} 13... Nd6 {[%clk 0:01:51.5]} 14. g4
{[%clk 0:01:41.1]} 14... Qe8 {[%clk 0:01:19.4]} 15. Nc3 {[%clk 0:01:23.3]} 15...
h5 {[%clk 0:01:18.8]} 16. g5 {[%clk 0:01:20]} 16... Nf5 {[%clk 0:01:17.3]} 17.
Qd3 {[%clk 0:01:10.8]} 17... Ng4 {[%clk 0:01:12.9]} 18. Nxd5 {[%clk 0:00:51.9]}
18... Nxd4 {[%clk 0:01:12.2]} 19. Qxd4 {[%clk 0:00:52.3]} 19... Nxe5 {[%clk
0:01:12.5]} 20. fxe5 {[%clk 0:00:52.3]} 20... Kh7 {[%clk 0:01:12.8]} 21. Bd3
{[%clk 0:00:38.1]} 21... Rf8 {[%clk 0:01:05]} 22. O-O-O {[%clk 0:00:24]} 22...
Bg4 {[%clk 0:00:46.8]} 23. Nc7 {[%clk 0:00:11.6]} 23... Qd8 {[%clk 0:00:46.8]}
24. Qxd8 {[%clk 0:00:01.8]} 24... Raxd8 {[%clk 0:00:46.4]} 25. Rdf1 {[%clk
0:00:02.5]} 25... Bxe5 {[%clk 0:00:43.1]} 26. Rxf8 {[%clk 0:00:01.5]} 26... Rxf8
{[%clk 0:00:44]} 27. Nd5 {[%clk 0:00:02]} 27... Bd6 {[%clk 0:00:39.4]} 28. Re1
{[%clk 0:00:01.9]} 28... Rf7 {[%clk 0:00:36.2]} 29. h4 {[%clk 0:00:02]} 29...
Kg7 {[%clk 0:00:36.3]} 30. c4 {[%clk 0:00:02.1]} 30... Rf2 {[%clk 0:00:22.9]}
31. Nxe7 {[%clk 0:00:01.8]} 31... Bf4+ {[%clk 0:00:22.5]} 32. Kb1 {[%clk
0:00:02.1]} 32... Bg3 {[%clk 0:00:20.6]} 33. Nxg6 {[%clk 0:00:01.6]} 33... Rxb2+
{[%clk 0:00:17.3]} 34. Kxb2 {[%clk 0:00:01.7]} 34... Bxe1 {[%clk 0:00:18.2]} 35.
Ne7 {[%clk 0:00:01.6]} 35... Kf7 {[%clk 0:00:16.1]} 36. Nf5 {[%clk 0:00:02.1]}
36... Ke6 {[%clk 0:00:16.1]} 37. Ne3 {[%clk 0:00:01.6]} 37... Bf3 {[%clk
0:00:15.2]} 0-1

[Event "Late-Titled-Tuesday-Blitz-September-12-2023"]
[Site "Chess.com"]
[Date "2023.09.12"]
[Round "9"]
[White "djano"]
[Black "kreonx"]
[Result "1-0"]
[WhiteElo "2632"]
[BlackElo "2456"]
[TimeControl "180+1"]
[EndTime "15:39:19 PDT"]
[Termination "djano won by resignation"]

1. e4 {[%clk 0:03:00.9]} 1... c6 {[%clk 0:02:57.9]} 2. d4 {[%clk 0:03:00.7]}
2... d5 {[%clk 0:02:53.2]} 3. exd5 {[%clk 0:03:01.6]} 3... cxd5 {[%clk
0:02:52.8]} 4. Bd3 {[%clk 0:03:01.9]} 4... Nc6 {[%clk 0:02:51.5]} 5. c3 {[%clk
0:03:02.4]} 5... g6 {[%clk 0:02:48.4]} 6. Nf3 {[%clk 0:03:01.4]} 6... Bf5 {[%clk
0:02:43.6]} 7. O-O {[%clk 0:03:00.9]} 7... Nf6 {[%clk 0:02:36]} 8. Ne5 {[%clk
0:02:59.8]} 8... Bxd3 {[%clk 0:02:17.9]} 9. Nxd3 {[%clk 0:03:00.7]} 9... Bg7
{[%clk 0:02:16.6]} 10. Qb3 {[%clk 0:02:59.3]} 10... b6 {[%clk 0:02:13.4]} 11.
Bf4 {[%clk 0:02:55]} 11... O-O {[%clk 0:02:11.6]} 12. Nd2 {[%clk 0:02:55.3]}
12... Ne4 {[%clk 0:02:03.8]} 13. Rfe1 {[%clk 0:02:51.9]} 13... Nxd2 {[%clk
0:02:00.4]} 14. Bxd2 {[%clk 0:02:51.5]} 14... e6 {[%clk 0:01:53.8]} 15. h3
{[%clk 0:02:50.3]} 15... Na5 {[%clk 0:01:36.9]} 16. Qc2 {[%clk 0:02:41.1]} 16...
Nc4 {[%clk 0:01:36.6]} 17. Bf4 {[%clk 0:02:38.8]} 17... Rc8 {[%clk 0:01:36.1]}
18. a4 {[%clk 0:02:32.8]} 18... a5 {[%clk 0:01:29.8]} 19. Qb3 {[%clk 0:02:29.5]}
19... Qd7 {[%clk 0:01:22.3]} 20. Re2 {[%clk 0:02:28.6]} 20... Rc6 {[%clk
0:01:08.1]} 21. Rae1 {[%clk 0:02:24.3]} 21... Rfc8 {[%clk 0:01:08.6]} 22. h4
{[%clk 0:02:23.7]} 22... h5 {[%clk 0:01:07.5]} 23. Bg3 {[%clk 0:02:17.2]} 23...
Nd6 {[%clk 0:01:04.5]} 24. Be5 {[%clk 0:02:14.3]} 24... Nc4 {[%clk 0:00:56]} 25.
Bf4 {[%clk 0:02:09.7]} 25... Bf6 {[%clk 0:00:55.3]} 26. g3 {[%clk 0:02:09.1]}
26... Qb7 {[%clk 0:00:54]} 27. Ne5 {[%clk 0:02:01.5]} 27... Nxe5 {[%clk
0:00:52.9]} 28. Bxe5 {[%clk 0:02:01.5]} 28... Bxe5 {[%clk 0:00:52.8]} 29. Rxe5
{[%clk 0:02:02.2]} 29... Rc4 {[%clk 0:00:51]} 30. Qd1 {[%clk 0:01:59.3]} 30...
Qc6 {[%clk 0:00:46.9]} 31. g4 {[%clk 0:01:59.2]} 31... hxg4 {[%clk 0:00:27.7]}
32. Qxg4 {[%clk 0:01:58.9]} 32... Kf8 {[%clk 0:00:28.3]} 33. h5 {[%clk
0:01:58.9]} 33... gxh5 {[%clk 0:00:27.8]} 34. Rxh5 {[%clk 0:01:57.6]} 34... Ke7
{[%clk 0:00:25.9]} 35. Qg5+ {[%clk 0:01:57.7]} 35... Kd6 {[%clk 0:00:24.8]} 36.
Rh7 {[%clk 0:01:56.5]} 36... Rf8 {[%clk 0:00:20.2]} 37. Qg7 {[%clk 0:01:54.2]}
37... Ke7 {[%clk 0:00:19.8]} 38. Qg5+ {[%clk 0:01:49.7]} 38... Ke8 {[%clk
0:00:16.9]} 39. f4 {[%clk 0:01:42.1]} 39... Qd6 {[%clk 0:00:13.1]} 40. f5 {[%clk
0:01:41.6]} 40... Qe7 {[%clk 0:00:13.5]} 41. Qg3 {[%clk 0:01:37.5]} 41... Qc7
{[%clk 0:00:12.6]} 42. Rxe6+ {[%clk 0:01:35]} 42... Kd8 {[%clk 0:00:11]} 43.
Qxc7+ {[%clk 0:01:30.9]} 43... Kxc7 {[%clk 0:00:10.2]} 44. Rf6 {[%clk
0:01:21.5]} 44... Rxa4 {[%clk 0:00:09.7]} 45. Rhxf7+ {[%clk 0:01:20.7]} 45...
Rxf7 {[%clk 0:00:10.6]} 46. Rxf7+ {[%clk 0:01:21.6]} 46... Kd6 {[%clk
0:00:11.2]} 47. Rb7 {[%clk 0:01:20.9]} 47... Kc6 {[%clk 0:00:11.1]} 48. f6
{[%clk 0:01:16.2]} 48... Ra1+ {[%clk 0:00:11.3]} 49. Kg2 {[%clk 0:01:14.5]}
49... Kxb7 {[%clk 0:00:06]} 50. f7 {[%clk 0:01:14.9]} 50... Rb1 {[%clk
0:00:06.6]} 51. f8=Q {[%clk 0:01:13.9]} 51... Rxb2+ {[%clk 0:00:07.1]} 52. Kf3
{[%clk 0:01:14.5]} 52... Rb3 {[%clk 0:00:05.8]} 53. Qe7+ {[%clk 0:01:14.3]}
53... Kc6 {[%clk 0:00:06.1]} 54. Qe8+ {[%clk 0:01:14.1]} 54... Kc7 {[%clk
0:00:06.3]} 55. Qf7+ {[%clk 0:01:12.7]} 55... Kc6 {[%clk 0:00:06.3]} 56. Qe6+
{[%clk 0:01:13]} 56... Kc7 {[%clk 0:00:06.2]} 57. Qxd5 {[%clk 0:01:12.5]} 57...
Rxc3+ {[%clk 0:00:06.8]} 58. Ke4 {[%clk 0:01:13.2]} 58... Rc6 {[%clk 0:00:06.8]}
59. Qf7+ {[%clk 0:01:13.2]} 59... Kb8 {[%clk 0:00:07]} 60. d5 {[%clk 0:01:13.8]}
60... Rc7 {[%clk 0:00:05.6]} 61. Qf8+ {[%clk 0:01:12.3]} 61... Kb7 {[%clk
0:00:05.7]} 62. d6 {[%clk 0:01:12.4]} 62... Rh7 {[%clk 0:00:05.9]} 63. Qe7+
{[%clk 0:01:12]} 63... Rxe7+ {[%clk 0:00:05.1]} 64. dxe7 {[%clk 0:01:12.9]}
64... Ka6 {[%clk 0:00:05.3]} 65. e8=Q {[%clk 0:01:13.8]} 1-0